bitfinex/quotes_ETHUSD_20240716
["timestamp","ask_amount","ask_price","bid_price","bid_amount"]
[1721161643011,2.88168,3470.2,3470.0,0.55]
[1721161644036,2.88176,3470.1,3470.0,0.55]
[1721161645225,4.08362916,3470.1,3470.0,0.55]
[1721161646121,2.88176,3470.1,3470.0,0.55]
[1721161646961,4.08345916,3470.3,3470.0,0.55]
[1721161647317,2.88171,3470.2,3470.0,0.55]
[1721161647817,1.20186916,3470.3,3470.0,0.84144]
[1721161648023,1.20186916,3470.5,3470.0,0.84144]
[1721161648346,4.08327916,3470.6,3470.4,1.018]
[1721161648565,1.20186916,3470.7,3470.5,0.55]
[1721161648729,1.20186916,3470.8,3470.6,1.018]
[1721161648916,4.08294916,3471.0,3470.7,0.55]
[1721161649250,1.20186916,3471.0,3470.9,1.018]
[1721161649459,1.20186916,3471.3,3470.9,1.568]
[1721161649609,1.20186916,3471.2,3471.1,1.018]
[1721161649809,4.38271381,3471.4,3471.1,1.568]
[1721161649810,1.20186916,3471.3,3471.1,1.568]
[1721161650021,4.08262916,3471.3,3471.2,1.568]
[1721161650659,2.34981688,3471.3,3471.0,1.018]
[1721161650973,1.50316542,3471.1,3470.6,1.018]
[1721161651268,1.202376,3470.8,3470.6,1.018]
[1721161652109,1.50316542,3471.0,3470.6,1.018]
[1721161652110,1.202376,3470.9,3470.6,1.018]
[1721161652410,1.202376,3470.9,3470.8,1.018]
[1721161653540,1.202376,3471.0,3470.8,1.018]
[1721161653874,1.202376,3471.1,3470.9,0.55]
[1721161654166,1.202376,3471.2,3471.0,1.018]
[1721161654309,1.202376,3471.2,3471.1,0.55]
[1721161655352,1.5031647,3471.4,3471.1,0.55]
[1721161655353,1.202376,3471.3,3471.1,0.55]
[1721161655580,1.5031647,3471.3,3471.1,0.55]
[1721161655886,1.20238047,3471.2,3471.1,0.55]
[1721161656257,1.20238047,3471.3,3471.1,0.55]
[1721161656954,1.20238047,3471.2,3471.1,0.55]
[1721161657982,1.20238047,3471.3,3471.1,0.55]
[1721161658140,5.4367,3471.2,3470.0,0.30131441]
[1721161658339,1.20210443,3470.5,3470.0,0.30131441]
[1721161658842,1.20210443,3470.4,3470.0,0.30131441]
[1721161659538,1.20210443,3470.4,3470.1,0.55]
[1721161660173,1.20210443,3470.3,3470.1,0.55]
[1721161660493,1.20210443,3470.5,3470.2,2.4512]
[1721161660650,2.88126,3470.7,3470.3,0.88025144]
[1721161660847,2.88126,3470.7,3470.3,0.55]
[1721161662139,4.08336443,3470.7,3470.3,0.55]
[1721161662344,2.88135,3470.6,3470.3,0.55]
[1721161662645,4.08345443,3470.6,3470.3,0.55]
[1721161663081,1.20210443,3470.5,3470.3,0.55]
[1721161663278,4.08345443,3470.6,3470.3,0.55]
[1721161664811,4.93177709,3470.6,3470.3,0.55]
[1721161665087,2.88151,3470.4,3470.3,0.55]
[1721161665307,2.88151,3470.4,3470.0,0.30131441]
[1721161665308,2.88169,3470.2,3470.0,0.30131441]
[1721161666991,2.88169,3470.2,3470.1,0.55]
[1721161669777,4.08361443,3470.4,3470.1,0.55]
[1721161669778,1.20210443,3470.4,3470.1,0.86641144]
[1721161669990,4.08347443,3470.6,3470.1,0.86641144]
[1721161670299,4.08347443,3470.6,3470.2,2.4705]
[1721161670462,4.08347443,3470.6,3470.3,0.55]
[1721161670799,4.08354443,3470.5,3470.3,0.55]
[1721161670955,1.20210443,3470.5,3470.3,0.55]
[1721161671163,1.20210443,3470.6,3470.3,0.55]
[1721161671359,4.08347443,3470.6,3470.3,0.55]
[1721161671773,6.96489443,3470.6,3470.3,0.55]
[1721161672371,4.08347443,3470.6,3470.3,0.55]
[1721161673500,4.08353443,3470.5,3470.3,0.55]
[1721161675091,2.88151,3470.4,3470.3,0.55]
[1721161675404,1.20210443,3470.5,3470.1,0.30139259]
[1721161675405,2.88166,3470.3,3470.1,0.30139259]
[1721161675617,2.88166,3470.3,3470.2,0.55]
[1721161675830,2.88169,3470.2,3469.9,0.55]
[1721161676120,4.08651652,3470.2,3469.9,0.55]
[1721161677694,1.20482652,3470.2,3469.9,0.55]
[1721161677894,1.5061137,3470.3,3470.0,0.8973325]
[1721161677895,1.20482652,3470.3,3470.0,0.8973325]
[1721161678112,1.20482652,3470.4,3470.1,0.55]
[1721161678527,1.20482652,3470.5,3470.1,0.55]
[1721161678821,1.20482652,3470.5,3470.3,2.2573]
[1721161679029,1.20482652,3470.5,3470.4,0.55]
[1721161679225,1.20482652,3470.5,3470.1,0.55]
[1721161679391,1.20482652,3470.5,3470.2,0.14473325]
[1721161679591,1.20482652,3470.5,3470.3,0.55]
[1721161679793,1.20482652,3470.6,3470.3,0.55]
[1721161680023,0.0154,3470.9,3470.3,0.55]
[1721161680024,1.22022652,3470.9,3470.3,0.55]
[1721161680247,1.22022652,3470.9,3470.6,2.442]
[1721161680396,1.22022652,3470.9,3470.7,0.55]
[1721161680939,0.0154,3470.9,3470.4,0.55]
[1721161681227,1.22022652,3470.9,3470.4,0.55]
[1721161681838,4.10132652,3470.9,3470.4,0.55]
[1721161682032,4.08603652,3470.8,3470.4,0.55]
[1721161682333,1.20482652,3470.6,3470.4,0.55]
[1721161682537,2.88126,3470.7,3470.4,0.55]
[1721161682538,1.20482652,3470.5,3470.4,0.55]
[1721161683234,4.3885057,3470.7,3470.4,0.55]
[1721161683235,1.20482652,3470.6,3470.4,0.55]
[1721161683533,4.3886457,3470.6,3470.4,0.55]
[1721161684001,4.3886457,3470.6,3470.1,0.55]
[1721161684334,1.20588505,3470.4,3470.1,0.55]
[1721161686540,1.20588505,3470.3,3470.1,0.55]
[1721161689869,1.20588505,3470.2,3470.1,0.55]
[1721161690054,1.20588505,3470.3,3470.1,0.55]
[1721161691769,1.20588505,3470.2,3470.1,0.55]
[1721161693964,4.08755505,3470.2,3470.1,0.55]
[1721161696384,2.88167,3470.2,3470.1,0.55]
[1721161696753,4.08952217,3470.2,3470.1,0.55]
[1721161696964,2.88167,3470.2,3470.1,0.55]
[1721161697892,4.39155032,3470.2,3470.1,0.55]
[1721161698909,2.88167,3470.2,3470.1,0.55]
[1721161699262,5.01142958,3470.2,3470.1,0.55]
[1721161699726,4.39125546,3470.2,3470.1,0.55]
[1721161699934,2.88167,3470.2,3470.1,0.55]
[1721161702221,4.39120415,3470.2,3470.1,0.55]
[1721161703219,2.88167,3470.2,3470.1,0.55]
[1721161704256,2.389,3470.1,3470.0,0.30131086]
[1721161704451,2.389,3470.1,3469.6,7.37]
[1721161704452,5.76418,3469.7,3469.6,7.37]
[1721161705841,5.76418,3469.7,3468.7,2.3415]
[1721161705842,2.88265,3469.1,3468.7,2.3415]
[1721161706013,2.88265,3469.1,3467.6,0.2888]
[1721161706014,2.88303,3468.6,3468.1,4.8524]
[1721161706219,1.2069508,3468.5,3468.1,2.4104]
[1721161706412,1.2069508,3468.5,3468.2,0.30130858]
[1721161706623,1.2069508,3468.7,3468.2,0.30130858]
[1721161706939,4.6930288,3469.2,3468.6,2.3402]
[1721161706940,1.2069508,3469.0,3468.6,2.3402]
[1721161707102,1.2069508,3469.1,3468.7,0.47822]
[1721161707305,4.0894608,3469.2,3468.8,0.55]
[1721161707707,1.2069508,3469.3,3469.0,2.442]
[1721161707906,4.38967499,3469.5,3469.0,2.442]
[1721161707907,1.2069508,3469.4,3469.1,0.55]
[1721161708145,4.0893208,3469.4,3469.1,0.55]
[1721161708748,1.2069508,3469.5,3469.1,0.55]
[1721161708922,4.2069508,3469.5,3469.1,0.55]
[1721161710345,1.2069508,3469.4,3469.2,2.3955]
[1721161710554,1.2069508,3469.6,3469.3,0.55]
[1721161710859,1.2069508,3469.9,3469.4,2.442]
[1721161711019,1.2069508,3469.9,3469.5,0.55]
[1721161712458,4.0888408,3470.0,3469.5,0.55]
[1721161712631,1.2069508,3470.0,3469.5,1.08875]
[1721161712830,4.38813526,3470.2,3469.6,2.3699]
[1721161712831,1.2069508,3470.1,3469.6,2.3699]
[1721161713033,1.2069508,3470.2,3469.8,2.442]
[1721161713341,0.0154,3470.9,3469.8,2.442]
[1721161713342,1.2069508,3470.4,3469.9,1.08619]
[1721161713543,1.2069508,3470.3,3469.9,0.55]
[1721161713930,1.2069508,3470.2,3469.9,0.55]
[1721161714168,1.2069508,3470.1,3469.7,0.55]
[1721161714837,5.59510569,3470.2,3469.7,0.55]
[1721161715044,4.0886208,3470.2,3469.7,0.55]
[1721161715249,4.0886208,3470.2,3469.7,1.140065]
[1721161716552,4.0887808,3470.1,3469.7,0.55]
[1721161717120,1.2069508,3470.0,3469.7,0.55]
[1721161717320,4.0887808,3470.1,3469.7,0.55]
[1721161717535,2.88183,3470.1,3469.7,0.55]
[1721161717822,1.2069508,3470.2,3469.7,0.55]
[1721161718826,2.88176,3470.1,3469.7,0.55]
[1721161719635,1.2069508,3470.2,3469.7,0.55]
[1721161719833,4.0885808,3470.3,3469.8,0.29199]
[1721161720062,4.0885808,3470.3,3469.9,0.55]
[1721161720367,4.0887308,3470.1,3469.9,0.55]
[1721161724270,4.0887308,3470.1,3469.2,4.7187]
[1721161724271,2.88184,3470.0,3469.2,4.7187]
[1721161724522,2.88184,3470.0,3469.2,2.2767]
[1721161724523,4.0890208,3469.8,3469.2,2.2767]
[1721161724670,4.0890208,3469.8,3469.0,7.37]
[1721161724671,2.88234,3469.4,3469.0,7.37]
[1721161726321,2.88234,3469.4,3469.1,0.55]
[1721161727287,2.88234,3469.4,3469.0,0.55]
[1721161728119,1.2069508,3469.5,3469.0,1.12812541]
[1721161728325,1.2069508,3469.6,3469.0,1.12812541]
[1721161728722,1.2069508,3469.7,3469.0,1.12812541]
[1721161728931,1.2069508,3469.8,3469.3,2.442]
[1721161729211,1.2069508,3469.9,3469.4,1.02895]
[1721161729508,1.2069508,3469.9,3469.5,2.3475]
[1721161729708,1.2069508,3469.9,3469.6,0.55]
[1721161730575,2.88209,3469.7,3469.6,0.55]
[1721161730809,2.88209,3469.7,3469.4,0.55]
[1721161731058,2.88209,3469.7,3469.1,0.55]
[1721161731059,1.2049207,3469.5,3469.1,0.55]
[1721161731341,1.2049207,3469.5,3469.1,1.69063742]
[1721161732623,1.2049207,3469.4,3469.1,0.55]
[1721161733514,4.0872207,3469.5,3469.1,0.55]
[1721161736347,1.2049207,3469.6,3469.1,0.55]
[1721161736510,1.2049207,3469.6,3469.2,0.85235442]
[1721161736712,1.2049207,3469.6,3469.3,0.55]
[1721161737542,4.0870207,3469.7,3469.3,0.55]
[1721161737943,1.2049207,3469.6,3469.3,0.55]
[1721161739650,1.2049207,3469.7,3469.3,0.55]
[1721161739821,1.2049207,3469.7,3469.4,2.3928]
[1721161740155,1.2049207,3469.7,3469.5,0.55]
[1721161740447,1.2049207,3469.8,3469.5,0.55]
[1721161740865,1.2049207,3469.7,3469.5,0.55]
[1721161742371,1.2049207,3469.8,3469.5,0.55]
[1721161742777,1.2049207,3469.7,3469.5,0.55]
[1721161743722,1.2049207,3469.8,3469.5,0.55]
[1721161746619,1.2049207,3469.8,3469.5,1.53130291]
[1721161746977,1.80977065,3470.2,3469.8,2.4]
[1721161746978,1.2049207,3470.0,3469.8,2.4]
[1721161747260,4.60485797,3470.8,3469.9,0.55]
[1721161747261,1.2049207,3470.1,3469.9,0.55]
[1721161748387,1.2049207,3470.5,3470.2,2.4]
[1721161748525,1.2049207,3470.7,3470.4,2.88151]
[1721161748730,3.69837957,3470.8,3470.4,2.88151]
[1721161748942,3.69837957,3470.8,3470.6,2.442]
[1721161749138,2.49345887,3470.8,3470.6,2.442]
[1721161749336,2.49345887,3470.8,3470.7,0.55]
[1721161750231,2.49345887,3470.8,3470.2,5.28167]
[1721161750232,2.49345887,3470.8,3470.2,4.842]
[1721161750449,2.49345887,3470.8,3469.8,4.842]
[1721161750450,1.2049207,3470.6,3469.8,4.842]
[1721161750652,1.2049207,3470.4,3469.8,4.842]
[1721161751942,1.2049207,3470.4,3469.9,0.55]
[1721161752375,1.2049207,3470.5,3469.9,0.55]
[1721161752544,1.2049207,3470.4,3469.9,0.55]
[1721161752926,1.2049207,3470.5,3469.9,0.55]
[1721161758395,1.2049207,3470.4,3469.9,0.55]
[1721161758799,1.2049207,3470.5,3469.9,0.55]
[1721161759095,1.2049207,3470.4,3469.9,0.55]
[1721161759252,1.2049207,3470.4,3469.9,1.377415]
[1721161761991,1.2049207,3470.0,3469.5,0.30132339]
[1721161762201,1.2049207,3470.0,3469.6,0.55]
[1721161767408,1.2049207,3469.9,3469.6,0.55]
[1721161767713,1.2049207,3469.8,3469.6,0.55]
[1721161768272,1.2049207,3469.9,3469.6,0.55]
[1721161769894,1.2049207,3469.7,3469.5,0.30132339]
[1721161770094,2.3982,3469.8,3469.5,0.30132339]
[1721161770095,1.20729332,3469.6,3469.5,0.30132339]
[1721161771404,4.08946332,3469.6,3469.5,0.30132339]
[1721161771593,2.88217,3469.6,3469.5,0.30132339]
[1721161771796,4.08949618,3469.6,3469.5,0.30132339]
[1721161772529,2.88217,3469.6,3469.5,0.30132339]
[1721161772734,4.08953584,3469.6,3469.5,0.30132339]
[1721161773132,2.88217,3469.6,3469.5,0.30132339]
[1721161773317,4.08951638,3469.6,3469.5,0.30132339]
[1721161775747,2.88217,3469.6,3469.5,0.30132339]
[1721161776131,4.08953785,3469.6,3469.5,0.30132339]
[1721161776447,2.88217,3469.6,3469.5,0.30132339]
[1721161776748,4.0895121,3469.6,3469.5,0.30132339]
[1721161780371,2.88217,3469.6,3469.5,1.32032339]
[1721161780864,4.08980303,3469.6,3469.5,1.32032339]
[1721161781522,4.08982173,3469.6,3469.5,1.32032339]
[1721161781724,5.84841254,3469.6,3469.5,0.30132339]
[1721161781940,8.84841254,3469.6,3468.7,1.019]
[1721161782154,1.20746656,3468.8,3468.2,5.35642]
[1721161782437,1.20741908,3468.8,3468.7,1.019]
[1721161783251,1.5088209,3468.9,3468.3,0.301476]
[1721161783455,1.20668875,3468.8,3468.7,1.019]
[1721161783657,1.65970299,3468.9,3468.3,0.301476]
[1721161783832,1.20660906,3468.5,3468.1,1.019]
[1721161784032,1.47815206,3468.4,3467.4,2.4309]
[1721161784229,1.20660906,3468.2,3467.4,2.4309]
[1721161784755,1.20660906,3468.1,3467.4,2.4309]
[1721161784957,1.20660906,3467.9,3467.0,2.4541]
[1721161785137,1.20660906,3467.9,3467.0,5.33843]
[1721161785343,1.20660906,3468.0,3467.0,7.142423]
[1721161785742,1.20660906,3468.0,3467.3,2.447]
[1721161785982,4.20660906,3468.3,3467.4,2.88399]
[1721161786180,1.20660906,3468.3,3467.4,2.88399]
[1721161786338,4.20660906,3468.4,3467.4,2.88399]
[1721161786542,5.88331,3468.3,3467.4,3.705514]
[1721161787088,2.88336,3468.2,3467.5,0.55]
[1721161787296,2.88336,3468.2,3467.4,0.55]
[1721161787788,2.88336,3468.2,3467.4,3.43399]
[1721161787965,2.88336,3468.2,3467.4,0.55]
[1721161788151,2.88336,3468.2,3467.3,3.43408]
[1721161788351,2.88336,3468.2,3467.4,2.884]
[1721161788581,2.88336,3468.2,3467.5,0.55]
[1721161789178,3.0,3468.3,3467.6,2.4541]
[1721161789482,3.0,3468.6,3467.7,0.55]
[1721161789785,0.95663912,3468.6,3467.7,0.55]
[1721161792181,3.0,3468.7,3467.7,3.43369]
[1721161792372,3.0,3469.1,3467.7,6.31738]
[1721161792572,3.0,3469.1,3467.8,2.88367]
[1721161792773,3.0,3469.1,3467.9,0.55]
[1721161792995,0.64944091,3469.0,3467.9,0.55]
[1721161795253,0.64944091,3469.0,3468.0,2.4087]
[1721161795455,0.64944091,3469.0,3468.1,0.55]
[1721161797277,1.20660906,3469.4,3468.4,5.33016]
[1721161797476,3.84489195,3469.6,3468.6,2.3733]
[1721161797477,2.3419,3469.6,3468.6,2.3733]
[1721161797802,2.3419,3469.6,3468.8,2.447]
[1721161798086,2.3419,3469.6,3468.6,5.25628]
[1721161798292,2.3419,3469.6,3468.7,1.363944]
[1721161800095,2.3419,3469.6,3468.7,0.55]
[1721161800317,3.0,3469.8,3468.7,0.55]
[1721161800504,6.63960906,3470.0,3468.7,0.55]
[1721161802080,1.20660906,3469.9,3468.7,0.55]
[1721161802406,1.20660906,3469.9,3468.7,1.663639]
[1721161802407,0.81444118,3469.8,3468.7,1.663639]
[1721161803370,0.81444118,3469.8,3468.7,0.55]
[1721161805473,5.10633762,3469.6,3468.4,0.55]
[1721161806960,1.20660906,3469.5,3468.3,2.4405]
[1721161807119,2.4087,3469.3,3468.3,2.4405]
[1721161807324,0.51207444,3469.2,3468.3,2.4405]
[1721161807553,1.7186835,3469.2,3468.3,2.4405]
[1721161807918,0.51207444,3469.2,3468.3,2.4405]
[1721161808436,1.7186835,3469.2,3468.3,2.4405]
[1721161808629,1.7186835,3469.2,3468.4,0.55]
[1721161809010,0.51207444,3469.2,3468.4,0.55]
[1721161809456,1.7186835,3469.2,3468.4,0.55]
[1721161809614,0.47954812,3469.1,3468.4,0.55]
[1721161811661,1.20660906,3469.2,3468.4,0.55]
[1721161815975,1.20660906,3469.9,3469.1,2.9939]
[1721161816529,1.20660906,3469.9,3469.1,3.05154817]
[1721161816874,4.20660906,3470.0,3469.1,2.9939]
[1721161817058,4.20660906,3470.0,3469.2,0.886067]
[1721161817362,1.20660906,3470.0,3469.3,0.55]
[1721161818464,1.20660906,3470.0,3469.2,0.55]
[1721161818678,1.20660906,3469.9,3469.2,0.55]
[1721161818827,0.81473667,3469.8,3469.2,0.55]
[1721161820456,1.20660906,3470.0,3469.2,0.55]
[1721161821777,1.20660906,3469.9,3469.2,0.55]
[1721161821928,1.20660906,3469.8,3469.2,0.55]
[1721161822860,1.20660906,3470.0,3469.2,0.55]
[1721161823165,0.81472195,3469.9,3469.2,0.55]
[1721161824766,1.20660906,3470.0,3469.2,0.55]
[1721161824974,4.20660906,3470.1,3469.5,2.4235]
[1721161825136,3.0,3470.1,3469.6,0.55]
[1721161825463,1.20660906,3470.2,3469.6,0.55]
[1721161825464,4.20660906,3470.2,3469.6,0.55]
[1721161825676,1.20660906,3470.2,3469.6,0.55]
[1721161825875,1.20660906,3470.2,3469.6,1.09205]
[1721161826076,3.0,3470.3,3469.7,2.4044]
[1721161826232,4.20660906,3470.5,3469.8,0.55]
[1721161826429,1.20660906,3470.5,3469.8,2.997]
[1721161826745,1.20660906,3470.6,3469.9,2.3007]
[1721161826934,1.20660906,3470.6,3470.0,0.55]
[1721161826935,1.35888749,3470.6,3470.0,0.55]
[1721161828366,1.35888749,3470.6,3469.9,2.3007]
[1721161828546,1.20660906,3470.4,3469.5,2.2887]
[1721161828755,1.20660906,3470.4,3469.6,0.55]
[1721161828966,1.20660906,3470.3,3469.6,0.55]
[1721161829345,1.20660906,3470.4,3469.6,0.55]
[1721161830850,1.20660906,3470.3,3469.6,0.55]
[1721161831166,1.20660906,3470.4,3469.6,0.55]
[1721161831327,1.20660906,3470.3,3469.6,0.55]
[1721161833043,4.20660906,3470.4,3469.6,0.55]
[1721161833340,4.20660906,3470.4,3469.7,4.7253]
[1721161833341,3.0,3470.4,3469.7,4.7253]
[1721161833559,4.20660906,3470.6,3469.8,0.55]
[1721161834438,4.20660906,3470.5,3469.8,0.55]
[1721161834784,1.20660906,3470.5,3469.8,0.55]
[1721161835075,4.20660906,3470.5,3469.8,0.55]
[1721161835485,1.20660906,3470.4,3469.8,0.55]
[1721161837288,4.20660906,3470.4,3469.8,0.55]
[1721161837440,1.20660906,3470.4,3469.8,0.55]
[1721161837641,1.20660906,3470.2,3469.8,0.55]
[1721161838144,1.20660906,3470.1,3469.8,0.55]
[1721161838344,1.20660906,3470.2,3469.8,0.55]
[1721161838551,1.20660906,3470.1,3469.8,0.55]
[1721161838754,1.20660906,3470.2,3469.8,0.55]
[1721161839040,1.20660906,3470.1,3469.8,0.55]
[1721161841397,1.20660906,3470.4,3470.0,2.2783]
[1721161841676,1.20660906,3470.5,3470.1,0.55]
[1721161842372,3.0154,3470.9,3470.0,2.2783]
[1721161842373,1.20660906,3470.3,3470.0,2.2783]
[1721161842574,1.20660906,3470.2,3469.6,2.2783]
[1721161842736,3.0,3470.6,3469.6,2.2783]
[1721161842737,1.20660906,3470.1,3469.6,2.2783]
[1721161842943,4.81159269,3470.6,3469.6,2.2783]
[1721161842944,1.20660906,3470.2,3469.6,2.2783]
[1721161843876,1.50966057,3470.3,3469.7,0.55]
[1721161843877,1.20660906,3470.1,3469.7,0.55]
[1721161845254,1.20660906,3470.2,3469.8,0.52753]
[1721161845450,1.50966057,3470.3,3469.8,0.52753]
[1721161845451,1.20660906,3470.3,3469.9,0.55]
[1721161846363,1.20660906,3470.3,3470.0,2.3013]
[1721161846982,1.20660906,3470.2,3470.0,2.3013]
[1721161847377,1.20660906,3470.3,3470.0,2.3013]
[1721161848294,1.20660906,3470.4,3470.0,2.3013]
[1721161848502,1.20660906,3470.4,3470.1,0.55]
[1721161848994,1.20660906,3470.5,3470.1,0.55]
[1721161849157,1.20660906,3470.4,3470.1,0.55]
[1721161849554,1.20660906,3470.5,3470.1,0.55]
[1721161849778,1.20660906,3470.4,3470.1,0.55]
[1721161850193,1.50954809,3470.6,3470.1,0.55]
[1721161850194,1.20660906,3470.5,3470.1,0.55]
[1721161850371,1.20660906,3470.4,3470.1,0.55]
[1721161851100,1.20660906,3470.5,3470.1,0.55]
[1721161854168,1.20660906,3470.4,3470.1,0.55]
[1721161854370,4.50941487,3470.6,3470.2,1.018]
[1721161854371,1.20660906,3470.3,3470.2,1.018]
[1721161857208,1.51069961,3470.4,3470.2,1.018]
[1721161858216,1.51069961,3470.3,3470.2,1.018]
[1721161858507,1.511634,3470.3,3470.2,1.018]
[1721161859889,4.8139608,3470.6,3470.2,1.018]
[1721161860122,1.8139608,3470.6,3470.0,2.3013]
[1721161860330,1.8139608,3470.6,3470.4,1.018]
[1721161861589,3.0,3470.8,3470.4,1.018]
[1721161861790,0.0154,3470.9,3470.0,2.3013]
[1721161861791,1.81481618,3470.6,3470.0,2.3013]
[1721161862015,1.51234659,3470.3,3470.1,1.068321]
[1721161862238,1.51234659,3470.3,3470.2,1.018]
[1721161862400,1.51234659,3470.3,3470.2,1.568]
[1721161864132,1.51234659,3470.3,3470.0,2.3013]
[1721161864291,1.51234659,3470.2,3470.0,1.018]
[1721161864604,0.33271628,3470.3,3469.2,1.018]
[1721161864605,2.3004,3470.3,3469.2,1.018]
[1721161864809,2.3004,3470.3,3469.1,2.2742]
[1721161864810,1.51268506,3469.3,3469.1,2.2742]
[1721161865137,1.51225044,3469.3,3469.2,1.018]
[1721161865306,1.51219923,3469.3,3469.2,1.018]
[1721161865716,1.81522207,3469.6,3469.2,1.018]
[1721161865923,1.81522207,3469.6,3469.4,1.018]
[1721161866249,4.81522207,3469.8,3469.1,2.2742]
[1721161866425,1.20962474,3469.3,3469.1,2.74612]
[1721161866808,1.20962474,3469.3,3469.2,0.55]
[1721161867325,1.51205397,3469.4,3469.2,0.55]
[1721161867511,1.20968421,3469.3,3469.2,0.55]
[1721161868697,1.20968421,3469.4,3469.2,1.124112]
[1721161870350,1.20968421,3469.5,3469.2,1.124112]
[1721161870638,1.20968421,3469.5,3469.4,4.8448]
[1721161870824,1.20968421,3469.8,3469.4,5.3948]
[1721161871036,1.20968421,3469.8,3469.5,1.20452964]
[1721161871200,1.20968421,3469.9,3469.5,1.20452964]
[1721161872301,1.20968421,3469.9,3469.5,1.1468912]
[1721161872730,1.20968421,3470.0,3469.8,4.9341]
[1721161872943,1.20968421,3470.1,3469.9,0.55]
[1721161873306,1.20968421,3470.2,3469.9,0.55]
[1721161875060,1.20968421,3470.3,3469.9,0.55]
[1721161875616,1.20968421,3470.2,3469.9,0.55]
[1721161876038,1.20968421,3470.3,3469.9,0.55]
[1721161876227,1.20968421,3470.3,3470.0,0.92624071]
[1721161876398,1.20968421,3470.3,3470.1,0.55]
[1721161877628,1.20968421,3470.4,3470.1,0.55]
[1721161878839,1.20968421,3470.3,3470.1,0.55]
[1721161879732,1.20968421,3470.4,3470.2,7.66742]
[1721161879923,1.20968421,3470.6,3470.3,1.75254907]
[1721161880241,1.20968421,3470.7,3470.3,1.81017426]
[1721161880468,1.20968421,3470.7,3470.4,0.94775743]
[1721161880620,0.0154,3470.9,3470.6,2.445]
[1721161880621,1.22508421,3470.9,3470.6,2.445]
[1721161880829,0.0154,3470.9,3470.7,0.55]
[1721161881132,0.0154,3470.9,3470.8,0.05761897]
[1721161881340,0.0154,3470.9,3470.8,1.3774749]
[1721161881547,0.0154,3470.9,3470.8,6.5744549]
[1721161883559,0.0154,3470.9,3470.8,3.6932749]
[1721161883721,0.0154,3470.9,3470.8,0.55]
[1721161883919,0.0154,3470.9,3469.4,7.37]
[1721161883920,1.22508421,3470.9,3469.9,2.3876]
[1721161884262,1.20762239,3470.8,3469.9,2.3876]
[1721161884418,1.20762239,3470.8,3470.0,5.763]
[1721161884768,1.20762239,3470.7,3470.0,5.763]
[1721161885092,1.20762239,3470.6,3470.0,5.763]
[1721161885369,1.20762239,3470.5,3470.0,5.763]
[1721161885547,1.20762239,3470.6,3470.0,5.763]
[1721161885737,1.20762239,3470.7,3470.0,5.763]
[1721161886056,1.20762239,3470.6,3470.0,5.763]
[1721161886254,1.20762239,3470.6,3470.1,0.55]
[1721161886967,1.20762239,3470.5,3470.1,1.31537997]
[1721161887255,1.20762239,3470.6,3470.3,2.445]
[1721161887456,1.20762239,3470.6,3470.2,5.7634]
[1721161887618,1.20762239,3470.6,3470.3,0.55]
[1721161888630,1.50959276,3470.7,3470.3,0.55]
[1721161888631,1.20762239,3470.5,3470.3,0.55]
[1721161888877,1.20762239,3470.5,3470.2,5.7634]
[1721161889084,0.15249928,3470.7,3470.2,5.7634]
[1721161889085,1.50959276,3470.4,3470.2,5.7634]
[1721161889235,1.50959276,3470.3,3470.2,5.7634]
[1721161889679,1.50984771,3470.3,3470.2,5.7634]
[1721161891752,1.20780124,3470.3,3470.2,6.3134]
[1721161891963,1.20780124,3470.4,3470.2,8.7125]
[1721161892154,1.20780124,3470.5,3470.3,0.55]
[1721161892750,4.20780124,3470.6,3470.3,0.55]
[1721161893643,1.20780124,3470.5,3470.3,0.55]
[1721161894179,1.20780124,3470.4,3470.3,0.55]
[1721161894746,1.20778365,3470.4,3470.3,0.55]
[1721161894948,1.50964181,3470.5,3470.3,0.55]
[1721161895450,3.0,3470.7,3470.3,0.55]
[1721161895451,1.20772878,3470.4,3470.3,0.55]
[1721161896173,4.20772878,3470.5,3470.3,0.55]
[1721161896594,1.20772878,3470.5,3470.3,0.55]
[1721161898006,1.20772878,3470.4,3470.3,0.55]
[1721161899199,1.20772878,3470.4,3470.3,0.5346]
[1721161899508,1.20772878,3470.5,3470.3,0.5346]
[1721161899860,4.20772878,3470.5,3470.3,0.5346]
[1721161900961,1.20772878,3470.5,3470.3,0.5346]
[1721161901156,2.3524,3470.4,3470.3,0.5346]
[1721161901359,4.97100127,3470.4,3470.2,5.7634]
[1721161901585,3.0,3470.3,3470.2,5.7634]
[1721161901965,5.11420958,3470.3,3470.2,5.7634]
[1721161902173,3.0,3470.3,3470.2,5.7634]
[1721161902380,3.61593812,3470.3,3470.2,5.7634]
[1721161903714,5.72938784,3470.3,3470.2,5.7634]
[1721161903862,3.61593812,3470.3,3470.2,5.7634]
[1721161904199,5.42714583,3470.3,3470.2,5.7634]
[1721161904704,5.4271487,3470.3,3470.2,5.7634]
[1721161905293,3.61593812,3470.3,3470.2,5.7634]
[1721161905499,1.50904202,3470.3,3470.2,5.7634]
[1721161905665,2.2792,3471.1,3470.2,6.3134]
[1721161905666,1.20718346,3470.4,3470.2,6.3134]
[1721161905873,1.20717126,3470.4,3470.3,0.55]
[1721161906405,2.2792,3471.1,3470.3,0.55]
[1721161906406,1.50904202,3470.5,3470.3,0.55]
[1721161907284,1.20714889,3470.4,3470.3,0.55]
[1721161907577,1.20714889,3470.5,3470.3,0.55]
[1721161908269,4.20714889,3470.5,3470.3,0.55]
[1721161908470,1.20714889,3470.4,3470.3,0.55]
[1721161908904,4.20714889,3470.5,3470.3,0.55]
[1721161909108,1.20714889,3470.4,3470.3,0.55]